bitfinex-derivatives/quotes_ETHF0:USTF0_20250730
["timestamp","ask_amount","ask_price","bid_price","bid_amount"]
[1753916661859,1.7247,3772.5,3772.4,1.62700498]
[1753916662964,1.7247,3772.5,3772.4,0.92880498]
[1753916663164,1.7247,3771.9,3771.8,1.91830498]
[1753916663466,0.3037,3771.9,3771.8,2.44858498]
[1753916663663,1.2079,3772.1,3772.0,1.51975]
[1753916663861,1.2079,3772.1,3772.0,2.44855498]
[1753916664064,1.7247,3772.1,3772.0,2.44855498]
[1753916664767,1.2262,3772.1,3772.0,2.44855498]
[1753916665065,1.7247,3772.4,3772.3,0.6982]
[1753916665258,1.7247,3772.4,3772.3,1.62700498]
[1753916665455,0.698,3772.4,3772.3,1.62700498]
[1753916665660,1.7247,3772.4,3772.3,1.91830498]
[1753916667565,1.7247,3772.4,3772.3,2.44851498]
[1753916667867,1.4142,3772.4,3772.3,2.44851498]
[1753916668062,39.52712,3773.5,3772.3,2.44851498]
[1753916668063,1.33080984,3773.7,3772.5,0.3078]
[1753916668263,2.1047,3773.7,3773.6,0.92880498]
[1753916668562,1.90304522,3774.8,3774.7,0.52987]
[1753916668767,3.32783445,3775.4,3774.7,0.52987]
[1753916668768,0.3,3775.4,3775.1,0.59482]
[1753916668968,0.3,3775.4,3775.3,0.99380498]
[1753916669167,0.3,3775.4,3775.3,0.92880498]
[1753916669467,0.7906,3775.4,3775.3,0.92880498]
[1753916669765,0.9989,3776.0,3775.3,0.92880498]
[1753916669962,1.1585,3776.0,3775.9,0.92880498]
[1753916670467,1.4585,3776.0,3775.9,0.92880498]
[1753916670659,1.7511,3776.0,3775.9,0.92880498]
[1753916670865,1.7511,3776.0,3775.9,1.25592519]
[1753916671166,0.3,3776.1,3775.9,1.25592519]
[1753916671366,1.4585,3776.1,3776.0,0.32712021]
[1753916671861,1.7511,3776.1,3776.0,0.32712021]
[1753916675769,1.7511,3776.1,3776.0,0.53249815]
[1753916676664,6.7511,3776.1,3776.0,0.53249815]
[1753916677368,0.52981,3775.2,3774.7,0.3264]
[1753916677567,0.52981,3775.2,3773.6,38.183]
[1753916677568,0.72784,3774.9,3774.8,0.20522655]
[1753916677873,1.7511,3774.9,3774.8,0.97152655]
[1753916678862,1.2989,3774.9,3774.8,0.97152655]
[1753916679366,0.3,3774.9,3774.8,1.90033153]
[1753916679764,0.707,3774.9,3774.8,0.33103153]
[1753916679966,0.707,3774.9,3772.8,0.53014]
[1753916679967,66.14464657,3774.9,3772.8,0.53014]
[1753916680166,0.92880498,3774.2,3773.3,0.92880498]
[1753916680368,0.5926,3774.0,3773.6,1.91950498]
[1753916680671,1.22958,3773.9,3773.8,0.707]
[1753916680876,0.3,3775.5,3774.0,0.56487]
[1753916681168,1.3441,3774.8,3774.3,0.92880498]
[1753916681370,1.7511,3774.4,3774.3,0.5893]
[1753916681571,0.2926,3775.2,3774.5,0.0349]
[1753916681773,0.2926,3775.2,3775.1,0.393]
[1753916682070,0.4906,3775.2,3775.1,1.0869]
[1753916682271,0.2926,3775.2,3775.1,1.0869]
[1753916682676,0.5926,3775.2,3775.1,1.0869]
[1753916683576,0.3,3775.2,3775.1,1.0869]
[1753916684365,0.3,3775.2,3773.9,1.32494]
[1753916684366,0.8299,3774.5,3773.7,0.53001]
[1753916684565,1.2989,3774.3,3774.2,1.1179]
[1753916684765,0.52985,3774.9,3774.3,0.4224]
[1753916684766,0.3,3774.7,3774.3,0.4224]
[1753916684969,0.3,3774.7,3774.6,2.04670498]
[1753916685175,0.3,3774.7,3774.6,2.24500498]
[1753916685671,1.0063,3777.2,3777.1,0.4992]
[1753916685869,1.7511,3777.2,3777.1,0.8755]
[1753916686065,1.7511,3777.2,3777.0,0.92880498]
[1753916686276,1.7511,3777.1,3777.0,0.92880498]
[1753916686478,1.7511,3777.1,3777.0,1.48420498]
[1753916686680,1.2989,3777.1,3777.0,1.80430498]
[1753916686883,0.3,3777.1,3777.0,0.8755]
[1753916687179,0.3,3778.5,3777.0,5.4992]
[1753916687380,0.98157,3778.3,3777.6,1.87528741]
[1753916687576,0.9996,3777.8,3777.7,0.7524]
[1753916687772,1.73648914,3777.8,3777.7,0.8755]
[1753916688667,2.48798914,3777.8,3777.7,0.7524]
[1753916689076,1.4139372,3779.1,3778.0,1.32351]
[1753916689279,2.26879469,3779.7,3779.6,0.52918]
[1753916689470,1.88491276,3780.0,3779.6,1.87528741]
[1753916689773,2.37702461,3780.7,3779.7,0.52917]
[1753916690076,0.3,3780.5,3778.9,1.87528741]
[1753916690272,0.52899,3781.0,3780.3,1.87528741]
[1753916690473,0.5926,3780.9,3780.3,1.87528741]
[1753916690676,2.37702461,3781.3,3780.3,1.87528741]
[1753916690879,0.5926,3780.6,3780.3,1.87528741]
[1753916691085,2.37702461,3781.3,3779.8,1.87528741]
[1753916691286,0.3,3780.0,3779.7,1.87528741]
[1753916691585,0.52916,3779.8,3779.3,1.87528741]
[1753916691877,0.2926,3779.6,3779.3,1.87528741]
[1753916692078,0.3,3779.4,3779.3,1.87528741]
[1753916692775,0.3,3779.4,3778.8,2.05981585]
[1753916692776,0.52923,3779.3,3778.8,2.05981585]
[1753916692973,0.52923,3779.3,3777.8,0.39705123]
[1753916692974,0.3,3778.6,3778.3,2.05981585]
[1753916693375,0.82933,3778.6,3778.3,2.05981585]
[1753916693577,0.52934,3778.5,3778.3,2.05981585]
[1753916693776,1.32304,3779.4,3777.8,2.45686708]
[1753916693777,0.2926,3778.1,3777.8,2.45686708]
[1753916693976,0.2926,3778.1,3777.9,0.37255466]
[1753916694172,0.52941,3778.0,3777.8,2.45686708]
[1753916694376,0.822,3778.1,3777.9,0.37280139]
[1753916694669,1.122,3778.1,3778.0,0.37268115]
[1753916694876,1.5742,3778.1,3778.0,0.37268115]
[1753916695073,2.37702461,3781.7,3778.3,1.32341]
[1753916695272,2.37702461,3781.7,3777.8,0.39705123]
[1753916695273,0.3,3781.6,3781.3,2.05981585]
[1753916695476,0.3,3781.4,3780.8,0.2926]
[1753916695680,0.3,3781.2,3780.6,2.05981585]
[1753916695882,0.4522,3781.3,3780.6,2.05981585]
[1753916695883,0.3,3781.6,3780.7,0.2926]
[1753916696072,0.4522,3781.5,3780.7,0.2926]
[1753916696278,0.3,3781.4,3780.7,2.35241585]
[1753916696477,0.3,3781.4,3780.7,2.88144585]
[1753916696983,0.4522,3781.5,3781.2,2.35241585]
[1753916697180,0.17312972,3782.2,3780.8,0.2926]
[1753916697181,1.0448,3782.1,3780.8,0.2926]
[1753916697481,0.5926,3781.9,3781.1,0.52896]
[1753916697679,0.4522,3782.0,3781.1,0.52896]
[1753916697680,0.5926,3781.7,3781.1,0.52896]
[1753916697983,0.4522,3781.4,3781.2,2.05981585]
[1753916698183,1.0448,3781.3,3781.2,2.05981585]
[1753916700881,1.0448,3781.3,3780.3,0.52907]
[1753916700882,0.52897,3781.1,3780.3,0.52907]
[1753916701087,1.2443,3780.9,3780.5,0.52905]
[1753916701387,0.3515,3780.6,3780.5,0.52905]
[1753916701581,0.3515,3780.6,3780.5,1.00695]
[1753916701782,1.2443,3780.6,3780.5,0.52905]
[1753916702188,1.2443,3780.6,3780.5,0.91563147]
[1753916703683,1.2443,3780.6,3780.5,0.38658147]
[1753916703885,0.8928,3780.9,3779.8,2.05981585]
[1753916704089,0.52902,3780.8,3780.2,0.52909]
[1753916704289,0.8928,3780.7,3780.2,0.52909]
[1753916704484,0.52902,3780.8,3780.3,0.37349595]
[1753916704685,1.77338,3780.4,3779.8,2.53771585]
[1753916704889,0.5291,3780.2,3779.9,0.85116454]
[1753916705090,1.2443,3780.1,3779.9,0.4779]
[1753916705291,1.2443,3780.0,3779.9,0.4779]
[1753916705487,1.2443,3780.0,3779.8,0.52915]
[1753916705691,1.2443,3780.0,3779.9,0.4779]
[1753916706188,1.2443,3780.0,3779.9,0.85067103]
[1753916707888,1.2443,3780.0,3779.9,0.4779]
[1753916709187,0.7735,3780.0,3779.9,0.84986596]
[1753916709383,0.8223,3780.9,3779.9,0.48226596]
[1753916709594,0.422,3780.7,3780.1,0.4779]
[1753916709793,1.32242,3781.2,3780.2,0.37196596]
[1753916709794,0.52906,3780.5,3780.2,0.37196596]
[1753916709995,0.52905,3780.6,3780.3,0.37160097]
[1753916710187,0.52905,3780.6,3780.4,0.37160097]
[1753916710382,0.52905,3780.6,3780.5,0.37160097]
[1753916710586,1.77335,3780.6,3780.5,0.37160097]
[1753916711292,2.60985,3780.6,3780.5,0.37160097]
[1753916712001,0.3515,3780.6,3780.5,1.17050097]
[1753916712292,0.3515,3780.9,3780.8,1.02651]
[1753916712487,0.3515,3780.9,3780.8,3.43832682]
[1753916712688,0.5289,3781.7,3781.2,0.52895]
[1753916712886,0.17312972,3782.2,3780.8,2.54171682]
[1753916712887,0.8928,3781.4,3781.3,0.90055097]
[1753916713192,0.17312972,3782.2,3781.3,0.90055097]
[1753916713193,0.5289,3781.7,3781.5,0.4779]
[1753916713403,0.69101037,3781.6,3780.8,2.05981585]
[1753916713697,0.3515,3781.4,3780.9,0.36990339]
[1753916713895,1.2443,3781.2,3781.1,0.4779]
[1753916714093,0.8928,3781.2,3781.1,0.84780339]
[1753916714491,0.8928,3781.2,3781.1,0.36990339]
[1753916714693,1.2443,3781.2,3781.1,0.36990339]
[1753916714893,0.52904,3780.7,3780.2,1.007]
[1753916715094,1.42186,3780.5,3780.3,0.37005813]
[1753916715393,1.2443,3780.5,3780.4,0.37005813]
[1753916718296,1.93849652,3780.5,3780.4,0.37005813]
[1753916718998,0.69419652,3780.5,3779.5,0.52918]
[1753916719196,2.26187434,3781.0,3779.4,2.05981585]
[1753916719197,1.2443,3780.2,3779.4,2.58900585]
[1753916719390,1.3227,3780.3,3779.2,0.4779]
[1753916719593,1.93922354,3780.2,3779.2,0.4779]
[1753916719793,1.2443,3779.5,3779.2,0.4779]
[1753916719992,0.3515,3779.2,3778.7,2.05981585]
[1753916720194,0.3515,3779.1,3778.9,0.52927]
[1753916720394,0.3515,3779.1,3778.8,0.1103]
[1753916720395,0.3515,3779.3,3779.2,1.00713]
[1753916720592,0.3515,3779.3,3779.2,3.17724585]
[1753916720902,0.3515,3779.3,3779.2,2.64801585]
[1753916722696,0.3515,3779.3,3779.2,2.53771585]
[1753916723897,1.2443,3779.3,3779.2,2.53771585]
[1753916724097,1.2443,3779.3,3778.1,1.32343]
[1753916724098,0.8223,3779.1,3778.3,0.4779]
[1753916724298,1.2443,3779.0,3778.3,0.4779]
[1753916724498,0.3515,3778.9,3778.3,2.05981585]
[1753916724803,1.2443,3778.8,3778.5,0.4779]
[1753916725000,0.8928,3778.8,3778.5,0.52932]
[1753916725208,1.42209,3778.8,3778.3,2.05981585]
[1753916725397,0.01146017,3779.3,3778.3,2.05981585]
[1753916725398,0.8928,3778.6,3778.4,1.00724]
[1753916725597,1.2443,3778.5,3778.4,0.4779]
[1753916726001,1.2443,3778.5,3778.4,1.00724]
[1753916726306,0.3515,3778.5,3778.4,1.00724]
[1753916726800,0.8928,3778.9,3778.4,1.00724]
[1753916726801,0.01146017,3779.3,3778.4,6.43364]
[1753916727001,0.3515,3779.1,3779.0,0.4779]
[1753916727396,1.2443,3779.1,3779.0,0.4779]
[1753916727902,0.3515,3779.1,3779.0,0.4779]
[1753916728197,0.01146017,3779.3,3779.1,0.52924]
[1753916728394,0.36296017,3779.3,3779.2,0.4779]
[1753916730204,0.36296017,3779.3,3779.2,0.5756]
[1753916730907,0.36296017,3779.3,3779.2,0.4779]
[1753916731110,0.90026017,3779.3,3779.2,0.9553]
[1753916731404,1.68606017,3779.3,3779.2,0.9553]
[1753916731603,1.2632,3779.2,3778.2,0.4553]
[1753916731801,0.8514,3778.9,3778.8,1.00488]
[1753916732003,0.8954,3778.9,3778.8,1.46018]
[1753916732206,0.3581,3778.9,3778.8,1.46018]
[1753916733102,0.86286017,3779.3,3779.2,0.4756]
[1753916733300,1.76796017,3779.3,3779.2,0.9309]
[1753916733900,0.90686017,3779.3,3779.2,0.9309]
[1753916734103,0.36956017,3779.3,3779.2,0.9309]
[1753916734298,0.01146017,3779.3,3779.2,0.9309]
[1753916734600,0.01146017,3779.3,3779.2,1.0286]
[1753916736005,0.01146017,3779.3,3779.2,0.9309]
[1753916736206,0.36956017,3779.3,3779.2,0.9309]
[1753916736708,0.36956017,3779.3,3778.9,0.52926]
[1753916736709,0.8514,3779.0,3778.9,0.52926]
[1753916736899,1.92378627,3779.0,3778.9,0.76346]
[1753916737095,1.92378627,3779.0,3778.9,1.27266]
[1753916737303,1.92378627,3779.0,3778.9,1.08266]
[1753916737508,1.92378627,3779.0,3778.9,0.52926]
[1753916737905,2.1146,3778.9,3778.8,0.52928]
[1753916738303,2.1146,3778.8,3778.7,0.52929]
[1753916738608,0.8514,3778.5,3778.3,0.52935]
[1753916738909,2.1146,3778.4,3778.3,1.72805]
[1753916739108,2.1146,3778.4,3778.3,2.03205]
[1753916740412,0.8954,3778.4,3778.3,2.36895]
[1753916740710,0.3581,3778.4,3778.3,2.36895]
[1753916741511,0.4717,3778.7,3778.2,2.05981585]
[1753916741512,0.4717,3778.7,3778.6,0.52931]
[1753916741707,1.7565,3778.7,3778.6,2.03201]
[1753916742016,1.7565,3778.7,3778.6,1.5027]
[1753916742203,2.1146,3778.7,3778.6,1.5027]
[1753916742402,2.1146,3778.7,3778.6,0.7434]
[1753916742813,2.1146,3778.7,3778.6,2.6167687]
[1753916743014,2.1146,3778.7,3778.6,3.3760687]
[1753916743310,0.01146017,3779.3,3779.1,0.9982]
[1753916743506,0.01146017,3779.3,3779.2,4.2581987]
[1753916743706,1.0839,3779.6,3779.5,1.38659]
[1753916744012,0.2981,3779.6,3779.5,4.2581587]
[1753916744313,0.9051,3779.9,3779.8,1.43544]
[1753916744314,1.7565,3779.9,3779.8,1.43544]
[1753916744514,1.7565,3779.9,3779.8,0.9063]
[1753916745210,1.4424,3779.9,3779.8,2.08074]
[1753916745513,1.7565,3779.9,3779.8,2.08074]
[1753916745714,1.7565,3779.9,3779.8,1.62544]
[1753916745907,2.1146,3779.9,3779.8,0.5871]
[1753916746118,2.1146,3779.9,3779.8,1.11624]
[1753916746309,2.1146,3779.9,3779.8,0.5871]
[1753916747112,2.1146,3779.9,3779.8,0.9063]
[1753916747316,1.7565,3779.9,3779.8,1.0963]
[1753916747718,2.1146,3779.9,3779.8,0.9063]
[1753916749016,2.64373,3779.9,3779.8,0.5871]
[1753916749310,1.2632,3779.8,3779.6,0.3529]
[1753916749515,2.1146,3779.7,3779.6,0.5871]
[1753916751120,2.1146,3779.7,3779.6,0.9063]
[1753916751310,2.1146,3779.7,3779.6,1.5516]
[1753916751709,2.1146,3779.7,3779.6,0.9063]
[1753916751910,2.1146,3779.7,3779.6,1.5516]
[1753916752416,2.1146,3779.7,3779.6,1.8556]
[1753916753716,0.2981,3779.7,3779.6,1.8556]
[1753916753915,1.2848,3779.7,3779.6,1.8556]
[1753916754117,1.7565,3779.7,3779.6,1.8556]
[1753916754712,2.1146,3779.7,3779.6,1.8556]
[1753916756018,1.7565,3779.7,3779.6,1.8556]
[1753916757919,2.1146,3779.7,3779.6,1.8556]
[1753916758221,2.1146,3779.7,3779.6,1.4003]
[1753916759216,2.1146,3779.7,3779.6,0.9063]
[1753916759618,1.7565,3779.7,3779.6,1.8603]
[1753916760019,2.092,3779.7,3779.6,1.8603]
[1753916760923,2.092,3779.7,3779.3,2.05898741]
[1753916760924,0.8178,3779.4,3779.3,3.48449741]
[1753916761117,2.0445,3779.4,3779.3,3.48449741]
[1753916761427,2.0445,3779.4,3779.3,0.52921]
[1753916761720,2.0445,3779.3,3779.2,0.52922]
[1753916762118,2.0445,3779.2,3779.1,0.87813]
[1753916762421,2.0445,3779.1,3778.9,2.34101519]
[1753916762616,1.1533,3779.0,3778.9,2.92711519]
[1753916762920,2.0445,3779.0,3778.9,1.5566]
[1753916763413,1.2267,3778.9,3778.8,2.05898741]
[1753916763620,2.0445,3778.8,3778.7,2.92711519]
[1753916763919,2.0445,3778.8,3778.7,2.34101519]
[1753916764114,2.0445,3778.7,3778.6,2.34101519]
[1753916764314,2.0445,3778.6,3778.5,1.11542]
[1753916764914,2.0445,3778.6,3778.5,2.98900077]
[1753916765617,1.3229,3779.7,3778.2,2.87038519]
[1753916765618,1.1533,3778.5,3778.2,2.87038519]
[1753916765817,1.1533,3778.4,3778.3,2.76988077]
[1753916766018,1.1533,3778.4,3778.3,3.72388077]
[1753916766320,1.1533,3778.4,3778.3,3.25368077]
[1753916766516,2.0445,3778.4,3778.3,3.25368077]
[1753916767916,2.0445,3778.4,3778.3,1.3801]
[1753916768612,1.709,3778.4,3778.3,1.8503]
[1753916770218,1.709,3778.4,3778.3,3.72388077]
[1753916770827,2.0445,3778.4,3778.3,3.72388077]
[1753916772621,2.0445,3778.4,3778.3,2.37965]
[1753916772922,2.0445,3778.4,3778.3,0.8963]
[1753916773123,2.0445,3778.4,3778.3,0.5861]
[1753916774026,2.0445,3778.4,3777.8,0.39705123]
[1753916774027,1.1533,3778.4,3777.8,0.74595123]
[1753916774227,2.0445,3777.9,3777.8,0.98315123]
[1753916775828,2.0445,3777.9,3777.8,1.95365123]
[1753916776927,2.0445,3777.9,3777.8,1.48345123]
[1753916777323,2.0445,3777.9,3777.8,1.29335123]
[1753916777526,2.0445,3777.9,3777.8,0.98315123]
[1753916777722,2.0445,3777.9,3777.8,0.39705123]
[1753916777929,2.0445,3777.9,3777.8,1.48345123]
[1753916778434,2.0445,3777.9,3777.8,0.98315123]
[1753916778636,0.5932,3778.2,3778.1,0.3102]
[1753916778826,0.2925,3778.4,3778.3,1.37045]
[1753916779026,0.2925,3778.4,3778.3,3.24403077]
[1753916779226,0.7305,3778.4,3778.3,3.24403077]
[1753916779426,1.0312,3778.4,3778.3,3.72388077]
[1753916779729,1.709,3778.4,3778.3,3.72388077]
[1753916780625,1.0312,3778.9,3778.8,1.2642]
[1753916780830,1.0312,3778.9,3778.8,1.5014]
[1753916781032,1.0312,3778.9,3778.8,1.8503]
[1753916781228,1.4844,3778.9,3778.8,1.8503]
[1753916781422,2.0445,3778.9,3778.8,1.8503]
[1753916781626,0.8178,3778.2,3778.1,0.8411]
[1753916781824,0.8178,3778.6,3778.5,0.52932]
[1753916782024,1.709,3778.6,3778.5,2.37962]
[1753916782221,1.709,3778.6,3778.5,1.8503]
[1753916782627,1.4844,3778.6,3778.5,1.8503]
[1753916783425,2.0445,3778.6,3778.5,0.5861]
[1753916784535,2.0445,3778.6,3778.5,1.3801]
[1753916784734,2.0445,3778.6,3778.5,0.5861]
[1753916785231,2.0445,3778.6,3778.5,1.8503]
[1753916785632,0.2925,3778.6,3778.5,2.71468077]
[1753916785938,1.709,3778.6,3778.5,2.71468077]
[1753916786330,1.709,3778.6,3778.5,3.72388077]
[1753916786536,1.709,3778.6,3778.5,1.8503]
[1753916786829,2.0445,3778.6,3778.5,0.8963]
[1753916787626,2.0445,3778.6,3778.5,1.0864]
[1753916788036,2.0445,3778.6,3778.5,0.8963]
[1753916788937,2.0445,3778.6,3778.5,1.5314]
[1753916789135,2.0445,3778.6,3778.5,1.8324]
[1753916790338,1.709,3778.6,3778.5,1.8324]
[1753916792739,2.059,3778.6,3778.5,1.8324]
[1753916793337,1.709,3778.6,3778.5,1.8324]
[1753916794835,2.059,3778.6,3778.5,1.8324]
[1753916797540,1.709,3778.6,3778.5,1.8324]
[1753916797936,1.0312,3778.6,3778.5,1.8324]
[1753916798142,1.7272,3778.6,3778.5,1.8324]
[1753916798842,1.7158,3778.9,3778.8,1.0314]
[1753916799045,1.7158,3778.9,3778.8,2.72509447]
[1753916799342,1.7158,3778.9,3778.8,3.25437447]
[1753916799542,0.8158,3779.3,3779.2,1.39382]
[1753916799835,1.7158,3779.3,3779.2,1.39382]
[1753916800040,1.7158,3779.3,3779.2,2.32992]
[1753916801239,2.0658,3779.3,3779.2,2.32992]
[1753916801643,2.0658,3779.3,3779.2,1.0549]
[1753916801843,2.0658,3779.3,3779.2,0.8646]
[1753916805646,1.7158,3779.3,3779.2,1.8007]
[1753916806044,0.8158,3779.4,3779.3,2.32991]
[1753916806248,1.7158,3779.4,3779.3,2.32991]
[1753916807347,1.0198,3779.4,3779.3,2.32991]
[1753916807545,0.4657,3779.6,3779.3,2.32991]
[1753916807736,0.8158,3779.9,3779.8,1.06923]
[1753916807941,1.6001,3779.9,3779.8,1.08183]
[1753916808137,1.2501,3779.9,3779.8,0.75733]
[1753916808340,1.7158,3779.9,3779.8,2.32983]
[1753916808745,1.6001,3780.3,3780.2,0.75727]
[1753916808947,1.6001,3780.3,3780.2,1.27207]
[1753916808948,2.0658,3780.3,3780.2,1.27207]
[1753916809240,2.76608197,3780.3,3780.2,0.743]
[1753916809446,2.76608197,3780.3,3780.2,0.8646]
[1753916809647,2.76608197,3780.3,3780.2,1.4997]
[1753916809851,2.0658,3780.3,3780.2,0.8646]
[1753916810147,2.0658,3780.3,3780.2,0.5527]
[1753916811745,19.37803,3780.6,3780.3,0.52907]
[1753916811944,0.93937434,3781.0,3780.9,1.044]
[1753916812144,0.84414659,3781.0,3780.9,1.044]
[1753916812447,1.11454,3780.6,3779.4,2.34101519]
[1753916812641,0.2303,3779.4,3779.3,2.34101519]
[1753916812843,0.8158,3779.4,3779.3,0.52921]
[1753916813043,0.8158,3779.4,3778.9,1.87001519]
[1753916813044,1.2815,3779.0,3778.9,1.87001519]
[1753916813243,2.0658,3779.0,3778.7,0.52929]
[1753916813448,1.3286,3778.8,3778.7,0.52929]
[1753916813653,0.9786,3778.8,3778.7,2.32999]
[1753916814150,0.4657,3779.5,3779.1,0.52923]
[1753916814343,0.9786,3779.5,3779.4,1.8007]
[1753916814750,1.3286,3779.5,3779.4,1.8007]
[1753916815449,0.9786,3779.5,3779.4,1.8007]
[1753916815743,1.3286,3779.5,3779.4,1.8007]
[1753916816148,0.9786,3779.5,3779.4,1.8007]
[1753916817453,1.3286,3779.5,3779.4,1.3094]
[1753916817648,1.3286,3779.5,3779.4,0.9975]
[1753916818149,0.5129,3779.2,3778.8,0.4448]
[1753916818448,0.9786,3778.3,3778.2,2.33007]
[1753916818645,1.3745,3778.3,3778.2,2.33007]
[1753916819355,0.9786,3778.3,3778.2,1.8007]
[1753916819648,0.9786,3778.3,3778.1,0.52937]
[1753916819649,1.3706,3778.2,3778.1,0.2356]
[1753916819853,1.3706,3778.2,3778.1,0.5802]
[1753916820053,1.3706,3778.2,3777.9,0.1906]
[1753916820054,0.5687,3778.2,3777.9,0.5352]
[1753916820250,0.9379,3778.0,3777.9,0.8902]
[1753916820442,1.3706,3778.0,3777.9,1.3554]
[1753916820841,1.3539,3778.0,3777.9,1.8299]
[1753916821047,1.0014,3778.0,3777.9,1.8299]
[1753916821754,1.3539,3778.0,3777.9,1.8299]
[1753916822057,0.9379,3778.4,3778.3,1.0108]
[1753916822248,1.0014,3778.4,3778.3,1.8308]
[1753916822751,1.3689,3778.4,3778.3,1.8308]
[1753916823453,1.3689,3778.4,3778.3,1.3554]
[1753916823657,1.3689,3778.4,3777.8,0.39705123]
[1753916823658,0.566,3778.1,3777.8,0.39705123]
[1753916823857,1.3662,3778.0,3777.9,0.4652]
[1753916824159,1.3662,3778.0,3777.9,1.8308]
[1753916824355,0.9747,3778.0,3777.9,1.8308]
[1753916825854,0.9987,3778.0,3777.9,1.8308]
[1753916826157,1.3662,3778.0,3777.9,1.8308]
[1753916827058,0.52936,3778.3,3777.8,0.39705123]
[1753916827059,1.3662,3777.9,3777.8,0.39705123]
[1753916827351,0.9747,3777.9,3777.8,2.22785123]
[1753916827555,1.3662,3777.9,3777.8,1.75245123]
[1753916828860,1.3512,3777.9,3777.8,2.22785123]
[1753916829062,1.3662,3777.9,3777.8,2.22785123]
[1753916829252,0.3108,3778.4,3778.3,1.89495]
[1753916829553,38.4655,3779.4,3779.3,0.5456]
[1753916829758,0.9335,3779.1,3778.7,0.4652]
[1753916829958,0.9335,3778.5,3778.4,1.10953]
[1753916830153,1.3662,3778.5,3778.4,1.88473]
[1753916830651,1.3662,3778.5,3778.4,1.5469]
[1753916830961,1.3662,3778.5,3778.4,1.3554]
[1753916831157,1.3662,3778.5,3778.4,1.8308]
[1753916831360,1.3512,3778.5,3778.4,1.8308]
[1753916831660,0.9987,3778.5,3778.4,1.8308]
[1753916832960,0.3108,3778.5,3778.4,1.8308]
[1753916833157,0.3108,3779.1,3779.0,0.5456]
[1753916833457,0.9747,3779.1,3779.0,1.8308]
[1753916833661,1.3662,3779.1,3779.0,1.8308]
[1753916834554,1.3662,3779.1,3779.0,2.36005]
[1753916835157,0.9747,3779.1,3779.0,1.8308]
[1753916835657,0.542,3779.4,3779.3,2.36]
[1753916835858,0.9987,3779.4,3779.3,1.8308]
[1753916836063,1.3662,3779.4,3779.3,1.0108]
[1753916836266,1.3662,3779.4,3779.3,1.3554]
[1753916836458,0.52916,3779.7,3779.4,0.5292]
[1753916836765,1.09514,3779.8,3779.7,1.5469]
[1753916837056,0.542,3779.8,3779.7,1.3554]
[1753916837256,0.9747,3779.8,3779.7,1.8308]
[1753916838061,0.9987,3779.8,3779.7,1.8308]
[1753916838364,0.542,3779.5,3779.4,0.8902]
[1753916838559,1.3662,3779.5,3779.4,1.3554]
[1753916839661,1.89538,3779.5,3779.4,1.3554]
[1753916839866,0.9335,3779.0,3778.9,1.3554]
[1753916840166,0.9335,3778.8,3778.7,1.1198]
[1753916840365,1.3662,3778.8,3778.7,1.6393]
[1753916840559,0.9747,3778.8,3778.7,1.8308]
[1753916841360,1.3662,3778.8,3778.7,1.8308]
[1753916841560,0.9747,3778.8,3778.7,1.55028]
[1753916841761,1.3512,3778.8,3778.7,1.021]
[1753916842164,1.3512,3778.8,3778.7,1.8308]
[1753916842563,1.88048,3778.8,3778.7,1.8308]
[1753916842760,0.7852,3778.5,3778.3,0.52934]
[1753916842962,1.3662,3778.4,3778.3,1.07494]
[1753916843360,1.3662,3778.4,3778.3,2.36014]
[1753916843558,1.3662,3778.4,3778.3,1.8308]
[1753916844169,1.3512,3778.4,3778.3,1.8308]
[1753916844563,0.9987,3778.4,3778.3,1.8308]
[1753916845366,0.9987,3778.4,3778.3,2.36015]
[1753916845566,0.9987,3778.4,3778.3,1.8308]
[1753916846467,0.52929,3778.8,3778.4,0.3446]
[1753916846765,1.46279,3778.8,3778.7,1.8308]
[1753916847071,1.89549,3778.8,3778.7,1.3554]
[1753916847772,4.04883404,3780.7,3778.7,1.3554]
[1753916848064,4.04883404,3780.7,3779.2,0.5456]
[1753916848065,1.3662,3779.3,3779.2,0.5456]
[1753916848271,0.542,3778.9,3778.8,1.021]
[1753916848471,0.542,3778.9,3778.8,1.3554]
[1753916848472,1.89547,3778.9,3778.8,1.3554]
[1753916848977,1.05271,3778.6,3778.5,1.3079]
[1753916849169,1.84231,3778.6,3778.5,1.3079]
[1753916849770,0.8549,3778.3,3778.2,1.3079]
[1753916850166,1.313,3778.3,3778.2,1.4985]
[1753916850366,0.9815,3778.3,3778.2,1.8034]
[1753916853777,1.313,3778.0,3777.9,1.3079]
[1753916853969,1.84241,3777.9,3777.8,0.39705123]
[1753916854269,1.313,3777.9,3777.8,0.39705123]
[1753916854575,1.313,3777.9,3777.8,1.70495123]
[1753916855873,1.313,3777.9,3777.8,0.39705123]
[1753916856977,1.313,3777.9,3777.3,2.35226819]
[1753916856978,1.84248,3777.4,3777.3,2.35226819]
[1753916857874,1.313,3777.3,3777.2,2.35226819]
[1753916859477,0.5234,3777.1,3777.0,3.14126819]
[1753916859675,1.313,3777.1,3777.0,1.3079]
[1753916860274,1.313,3777.1,3777.0,1.83743]
[1753916860674,1.313,3777.1,3777.0,2.14833]
[1753916860872,0.9815,3777.6,3777.5,2.0514]
[1753916861175,20.02033,3778.5,3777.5,2.0514]
[1753916861176,1.51087,3778.2,3778.1,0.8298]
[1753916861480,1.51087,3778.2,3778.1,2.0514]
[1753916861876,1.84237,3778.2,3778.1,2.0514]
[1753916862073,1.84237,3778.2,3778.1,1.6188]
[1753916863182,0.9815,3778.2,3778.1,2.0514]
[1753916863483,0.52934,3778.4,3778.1,2.0514]
[1753916863679,0.83134,3778.4,3778.3,2.0514]